[Event "Titled Tuesday Blitz August 15 Late 2023"]
[White "chessmateto"]
[Black "ArtemDyachuk"]
[WhiteElo "2407"]
[BlackElo "2541"]
[Result "1-0"]
[Round "6"]
[TimeControl "180+1"]
[Date "2023.08.15"]
[WhiteClock "0:00:45"]
[BlackClock "0:00:07"]
[Board "83"]

1. c4 {[%clk 0:03:00]}  e5 {[%clk 0:02:58]} 2. Nc3 {[%clk 0:03:00]}  Nf6 {[%clk 0:02:43]} 3. g3 {[%clk 0:03:00]}  d5 {[%clk 0:02:40]} 4. cxd5 {[%clk 0:02:59]}  Nxd5 {[%clk 0:02:37]} 5. Bg2 {[%clk 0:02:59]}  Nb6 {[%clk 0:02:33]} 6. Nf3 {[%clk 0:03:00]}  Nc6 {[%clk 0:02:32]} 7. O-O {[%clk 0:03:00]}  Be7 {[%clk 0:02:27]} 8. a3 {[%clk 0:03:00]}  Be6 {[%clk 0:02:26]} 9. b4 {[%clk 0:02:58]}  O-O {[%clk 0:02:25]} 10. d3 {[%clk 0:02:55]}  a5 {[%clk 0:02:22]} 11. b5 {[%clk 0:02:54]}  Nd4 {[%clk 0:02:20]} 12. Nxe5 {[%clk 0:02:47]}  Bf6 {[%clk 0:02:18]} 13. Bf4 {[%clk 0:02:38]}  g5 {[%clk 0:02:15]} 14. e3 {[%clk 0:02:30]}  Nb3 {[%clk 0:02:07]} 15. Bxb7 {[%clk 0:02:16]}  gxf4 {[%clk 0:01:58]} 16. Nc6 {[%clk 0:01:57]}  Qd6 {[%clk 0:01:52]} 17. Ne4 {[%clk 0:01:56]}  Bxa1 {[%clk 0:01:22]} 18. Nxd6 {[%clk 0:01:52]}  cxd6 {[%clk 0:01:15]} 19. Bxa8 {[%clk 0:01:51]}  Rxa8 {[%clk 0:01:08]} 20. exf4 {[%clk 0:01:28]}  a4 {[%clk 0:01:02]} 21. Qh5 {[%clk 0:01:22]}  Bg7 {[%clk 0:00:45]} 22. f5 {[%clk 0:01:17]}  Bd7 {[%clk 0:00:44]} 23. Ne7+ {[%clk 0:01:12]}  Kf8 {[%clk 0:00:42]} 24. Qxh7 {[%clk 0:01:07]}  Bf6 {[%clk 0:00:41]} 25. Nc6 {[%clk 0:01:01]}  Re8 {[%clk 0:00:28]} 26. Qh6+ {[%clk 0:01:00]}  Bg7 {[%clk 0:00:28]} 27. Qxd6+ {[%clk 0:01:00]}  Kg8 {[%clk 0:00:29]} 28. Ne7+ {[%clk 0:00:58]}  Kh7 {[%clk 0:00:26]} 29. f6 {[%clk 0:00:56]}  Bh6 {[%clk 0:00:14]} 30. Qxb6 {[%clk 0:00:54]}  Nd2 {[%clk 0:00:14]} 31. Rd1 {[%clk 0:00:47]}  Bg4 {[%clk 0:00:12]} 32. Rxd2 {[%clk 0:00:46]}  Bxd2 {[%clk 0:00:07]} 33. Qc6 {[%clk 0:00:45]} 1-0


[Site "https://www.chess.com"]

[Event "Titled Tuesday Blitz August 15 Late 2023"]
[White "Silva Lucena, Cristian"]
[Black "subham777"]
[WhiteFideId "2232588"]
[WhiteElo "2387"]
[BlackElo "2534"]
[Result "0-1"]
[Round "6"]
[TimeControl "180+1"]
[Date "2023.08.15"]
[WhiteClock "0:00:46"]
[BlackClock "0:00:13"]
[Board "84"]

1. Nf3 {[%clk 0:03:00]}  d5 {[%clk 0:02:59]} 2. d4 {[%clk 0:02:59]}  Nf6 {[%clk 0:02:59]} 3. c4 {[%clk 0:02:59]}  e6 {[%clk 0:03:00]} 4. Nc3 {[%clk 0:02:57]}  Be7 {[%clk 0:03:00]} 5. cxd5 {[%clk 0:02:57]}  exd5 {[%clk 0:03:00]} 6. Bg5 {[%clk 0:02:58]}  O-O {[%clk 0:03:00]} 7. e3 {[%clk 0:02:58]}  Ne4 {[%clk 0:03:00]} 8. Bxe7 {[%clk 0:02:56]}  Qxe7 {[%clk 0:03:00]} 9. Nxd5 {[%clk 0:02:46]}  Qd6 {[%clk 0:02:57]} 10. Nc3 {[%clk 0:02:45]}  Qb4 {[%clk 0:02:52]} 11. Qc2 {[%clk 0:02:39]}  Bf5 {[%clk 0:02:46]} 12. Bd3 {[%clk 0:02:39]}  Nxc3 {[%clk 0:02:46]} 13. bxc3 {[%clk 0:02:37]}  Bxd3 {[%clk 0:02:45]} 14. Qxd3 {[%clk 0:02:37]}  Qe7 {[%clk 0:02:44]} 15. O-O {[%clk 0:02:32]}  Nd7 {[%clk 0:02:42]} 16. Rfb1 {[%clk 0:02:28]}  b6 {[%clk 0:02:42]} 17. Rb5 {[%clk 0:02:24]}  Rad8 {[%clk 0:02:37]} 18. a4 {[%clk 0:02:18]}  h6 {[%clk 0:02:34]} 19. a5 {[%clk 0:02:17]}  a6 {[%clk 0:02:28]} 20. Rb2 {[%clk 0:02:10]}  b5 {[%clk 0:02:28]} 21. c4 {[%clk 0:02:10]}  c6 {[%clk 0:02:27]} 22. cxb5 {[%clk 0:02:07]}  cxb5 {[%clk 0:02:28]} 23. Rc1 {[%clk 0:02:06]}  Rc8 {[%clk 0:02:24]} 24. Rbc2 {[%clk 0:02:04]}  Rxc2 {[%clk 0:02:21]} 25. Qxc2 {[%clk 0:02:05]}  Qb4 {[%clk 0:02:11]} 26. Qc3 {[%clk 0:02:00]}  Qe7 {[%clk 0:02:01]} 27. Qc7 {[%clk 0:01:55]}  Qa3 {[%clk 0:01:57]} 28. Rd1 {[%clk 0:01:41]}  Nf6 {[%clk 0:01:54]} 29. Ne5 {[%clk 0:01:41]}  b4 {[%clk 0:01:46]} 30. Rb1 {[%clk 0:01:35]}  Qa2 {[%clk 0:01:42]} 31. Qc1 {[%clk 0:01:36]}  Kh7 {[%clk 0:00:51]} 32. Rxb4 {[%clk 0:01:28]}  Ne4 {[%clk 0:00:49]} 33. Qb1 {[%clk 0:01:26]}  Qxf2+ {[%clk 0:00:48]} 34. Kh1 {[%clk 0:01:24]}  Qxe3 {[%clk 0:00:39]} 35. Ng4 {[%clk 0:01:24]}  Qf4 {[%clk 0:00:35]} 36. d5 {[%clk 0:01:17]}  f5 {[%clk 0:00:34]} 37. h3 {[%clk 0:01:06]}  Rc8 {[%clk 0:00:27]} 38. Nf6+ {[%clk 0:00:53]}  gxf6 {[%clk 0:00:19]} 39. Rb7+ {[%clk 0:00:53]}  Kh8 {[%clk 0:00:17]} 40. Rb8 {[%clk 0:00:50]}  Qxb8 {[%clk 0:00:13]} 41. Qxb8 {[%clk 0:00:51]}  Rxb8 {[%clk 0:00:13]} 42. d6 {[%clk 0:00:46]}  Nxd6 {[%clk 0:00:13]} 0-1


[Site "https://www.chess.com"]

[Event "Titled Tuesday Blitz August 15 Late 2023"]
[White "Zampronha, Wladimir Camilo"]
[Black "NigelDwarf"]
[WhiteFideId "2103087"]
[WhiteElo "2256"]
[BlackElo "2491"]
[Result "0-1"]
[Round "6"]
[TimeControl "180+1"]
[Date "2023.08.15"]
[WhiteClock "0:01:46"]
[BlackClock "0:01:50"]
[Board "91"]

1. e4 {[%clk 0:03:00]}  c5 {[%clk 0:02:58]} 2. Nf3 {[%clk 0:03:01]}  d6 {[%clk 0:02:58]} 3. d4 {[%clk 0:03:01]}  Nf6 {[%clk 0:02:58]} 4. Nc3 {[%clk 0:03:00]}  cxd4 {[%clk 0:02:58]} 5. Nxd4 {[%clk 0:02:59]}  a6 {[%clk 0:02:58]} 6. Bg5 {[%clk 0:02:58]}  Nbd7 {[%clk 0:02:58]} 7. f4 {[%clk 0:02:57]}  Qc7 {[%clk 0:02:58]} 8. Qf3 {[%clk 0:02:57]}  h6 {[%clk 0:02:58]} 9. Bxf6 {[%clk 0:02:57]}  Nxf6 {[%clk 0:02:59]} 10. O-O-O {[%clk 0:02:56]}  Bg4 {[%clk 0:02:59]} 11. Nd5 {[%clk 0:02:55]}  Nxd5 {[%clk 0:02:53]} 12. Qxg4 {[%clk 0:02:54]}  Ne3 {[%clk 0:02:52]} 13. Qg3 {[%clk 0:02:42]}  Nxd1 {[%clk 0:02:52]} 14. Kxd1 {[%clk 0:02:43]}  g6 {[%clk 0:02:50]} 15. Qd3 {[%clk 0:02:26]}  Bg7 {[%clk 0:02:49]} 16. Kc1 {[%clk 0:02:27]}  O-O {[%clk 0:02:48]} 17. Kb1 {[%clk 0:02:26]}  Rac8 {[%clk 0:02:39]} 18. Nb3 {[%clk 0:02:26]}  Rfd8 {[%clk 0:02:35]} 19. f5 {[%clk 0:02:26]}  d5 {[%clk 0:02:33]} 20. fxg6 {[%clk 0:02:23]}  fxg6 {[%clk 0:02:24]} 21. exd5 {[%clk 0:02:17]}  Qe5 {[%clk 0:02:24]} 22. c3 {[%clk 0:02:18]}  Rxd5 {[%clk 0:02:21]} 23. Qf3 {[%clk 0:02:07]}  Rf8 {[%clk 0:01:59]} 24. Qh3 {[%clk 0:01:58]}  Qe1+ {[%clk 0:01:55]} 25. Nc1 {[%clk 0:01:56]}  Rxf1 {[%clk 0:01:49]} 26. Rxf1 {[%clk 0:01:53]}  Qxf1 {[%clk 0:01:50]} 27. Qe6+ {[%clk 0:01:46]}  Qf7 {[%clk 0:01:50]} 0-1


[Site "https://www.chess.com"]

[Event "Titled Tuesday Blitz August 15 Late 2023"]
[White "Rego, Pedro Filipe"]
[Black "Sivakumar, Shaaketh"]
[WhiteFideId "1904310"]
[BlackFideId "30940176"]
[WhiteElo "2424"]
[BlackElo "2591"]
[Result "0-1"]
[Round "6"]
[TimeControl "180+1"]
[Date "2023.08.15"]
[WhiteClock "0:00:12"]
[BlackClock "0:01:14"]
[Board "94"]

1. c4 {[%clk 0:02:54]}  e6 {[%clk 0:02:58]} 2. g3 {[%clk 0:02:53]}  Ke7 {[%clk 0:02:59]} 3. Bg2 {[%clk 0:02:53]}  Nf6 {[%clk 0:02:59]} 4. d4 {[%clk 0:02:52]}  d6 {[%clk 0:02:59]} 5. Nc3 {[%clk 0:02:52]}  g6 {[%clk 0:02:59]} 6. e4 {[%clk 0:02:47]}  Bg7 {[%clk 0:02:58]} 7. h4 {[%clk 0:02:46]}  e5 {[%clk 0:02:57]} 8. Nf3 {[%clk 0:02:44]}  Nbd7 {[%clk 0:02:53]} 9. Bg5 {[%clk 0:02:38]}  h6 {[%clk 0:02:53]} 10. Be3 {[%clk 0:02:38]}  Re8 {[%clk 0:02:52]} 11. Qd2 {[%clk 0:02:38]}  Ng4 {[%clk 0:02:51]} 12. dxe5 {[%clk 0:02:27]}  dxe5 {[%clk 0:02:47]} 13. O-O-O {[%clk 0:02:19]}  Nxe3 {[%clk 0:02:46]} 14. Qxe3 {[%clk 0:02:20]}  c6 {[%clk 0:02:45]} 15. Bh3 {[%clk 0:02:13]}  Qa5 {[%clk 0:02:43]} 16. Kb1 {[%clk 0:02:12]}  Nb6 {[%clk 0:02:41]} 17. b3 {[%clk 0:02:09]}  Bxh3 {[%clk 0:02:39]} 18. Rxh3 {[%clk 0:02:09]}  Rad8 {[%clk 0:02:40]} 19. Rhh1 {[%clk 0:02:09]}  Kf8 {[%clk 0:02:33]} 20. Kb2 {[%clk 0:02:03]}  Qb4 {[%clk 0:02:26]} 21. Qe2 {[%clk 0:01:55]}  Rd4 {[%clk 0:02:24]} 22. a3 {[%clk 0:01:41]}  Qc5 {[%clk 0:02:07]} 23. Rd3 {[%clk 0:01:29]}  Red8 {[%clk 0:02:03]} 24. Rhd1 {[%clk 0:01:30]}  Rxd3 {[%clk 0:01:48]} 25. Rxd3 {[%clk 0:01:29]}  Rd4 {[%clk 0:01:48]} 26. Ne1 {[%clk 0:00:56]}  a5 {[%clk 0:01:45]} 27. a4 {[%clk 0:00:48]}  Qb4 {[%clk 0:01:43]} 28. Ka2 {[%clk 0:00:44]}  Nd7 {[%clk 0:01:42]} 29. Nc2 {[%clk 0:00:43]}  Qb6 {[%clk 0:01:39]} 30. Nxd4 {[%clk 0:00:42]}  exd4 {[%clk 0:01:40]} 31. Nb1 {[%clk 0:00:41]}  Nc5 {[%clk 0:01:40]} 32. Nd2 {[%clk 0:00:41]}  Na6 {[%clk 0:01:38]} 33. Nf3 {[%clk 0:00:40]}  Nb4+ {[%clk 0:01:36]} 34. Kb2 {[%clk 0:00:40]}  Nxd3+ {[%clk 0:01:36]} 35. Qxd3 {[%clk 0:00:41]}  c5 {[%clk 0:01:37]} 36. e5 {[%clk 0:00:41]}  Qc6 {[%clk 0:01:36]} 37. h5 {[%clk 0:00:40]}  gxh5 {[%clk 0:01:34]} 38. Nh4 {[%clk 0:00:35]}  Bxe5 {[%clk 0:01:31]} 39. Qf5 {[%clk 0:00:34]}  Qf6 {[%clk 0:01:30]} 40. f4 {[%clk 0:00:29]}  Qxf5 {[%clk 0:01:28]} 41. Nxf5 {[%clk 0:00:30]}  Bg7 {[%clk 0:01:24]} 42. Nd6 {[%clk 0:00:30]}  b6 {[%clk 0:01:21]} 43. Nc8 {[%clk 0:00:30]}  d3+ {[%clk 0:01:14]} 44. Kc1 {[%clk 0:00:30]}  Bc3 {[%clk 0:01:14]} 45. Nxb6 {[%clk 0:00:29]}  Be1 {[%clk 0:01:14]} 46. Nd7+ {[%clk 0:00:15]}  Ke7 {[%clk 0:01:15]} 47. Nxc5 {[%clk 0:00:16]}  Bxg3 {[%clk 0:01:12]} 48. Nxd3 {[%clk 0:00:14]}  h4 {[%clk 0:01:13]} 49. Ne5 {[%clk 0:00:13]}  Bxf4+ {[%clk 0:01:14]} 50. Kd1 {[%clk 0:00:12]}  Bxe5 {[%clk 0:01:14]} 51. Ke2 {[%clk 0:00:13]}  h3 {[%clk 0:01:13]} 52. Kf3 {[%clk 0:00:12]}  h2 {[%clk 0:01:14]} 0-1


[Site "https://www.chess.com"]

[Event "Titled Tuesday Blitz August 15 Late 2023"]
[White "Baghdasaryan, Vahe"]
[Black "Golubev, Mikhail"]
[WhiteFideId "13303139"]
[BlackFideId "14100983"]
[WhiteElo "2412"]
[BlackElo "2553"]
[Result "1-0"]
[Round "6"]
[TimeControl "180+1"]
[Date "2023.08.15"]
[WhiteClock "0:00:13"]
[BlackClock "0:00:00"]
[Board "96"]

1. e4 {[%clk 0:03:00]}  c5 {[%clk 0:02:59]} 2. c3 {[%clk 0:03:00]}  Nf6 {[%clk 0:02:58]} 3. e5 {[%clk 0:03:00]}  Nd5 {[%clk 0:02:59]} 4. Nf3 {[%clk 0:03:01]}  Nc6 {[%clk 0:02:58]} 5. Bc4 {[%clk 0:02:59]}  Nb6 {[%clk 0:02:57]} 6. Bb3 {[%clk 0:02:59]}  c4 {[%clk 0:02:57]} 7. Bc2 {[%clk 0:02:58]}  Qc7 {[%clk 0:02:57]} 8. Qe2 {[%clk 0:02:44]}  g5 {[%clk 0:02:57]} 9. e6 {[%clk 0:01:58]}  dxe6 {[%clk 0:02:56]} 10. Nxg5 {[%clk 0:01:57]}  Ne5 {[%clk 0:02:56]} 11. b3 {[%clk 0:01:52]}  Nd3+ {[%clk 0:02:16]} 12. Bxd3 {[%clk 0:01:51]}  cxd3 {[%clk 0:02:15]} 13. Qxd3 {[%clk 0:01:51]}  Rg8 {[%clk 0:02:10]} 14. h4 {[%clk 0:01:32]}  h6 {[%clk 0:02:05]} 15. Qh7 {[%clk 0:01:26]}  Qe5+ {[%clk 0:02:00]} 16. Kd1 {[%clk 0:01:25]}  Rg7 {[%clk 0:01:43]} 17. Qxh6 {[%clk 0:01:16]}  Qf5 {[%clk 0:01:35]} 18. Qh5 {[%clk 0:01:02]}  Qxf2 {[%clk 0:01:28]} 19. Qf3 {[%clk 0:00:47]}  Qxf3+ {[%clk 0:01:28]} 20. gxf3 {[%clk 0:00:48]}  e5 {[%clk 0:01:28]} 21. d3 {[%clk 0:00:42]}  f6 {[%clk 0:01:26]} 22. Ne4 {[%clk 0:00:43]}  Bf5 {[%clk 0:01:26]} 23. Nbd2 {[%clk 0:00:24]}  Rd8 {[%clk 0:01:25]} 24. Kc2 {[%clk 0:00:19]}  Nd5 {[%clk 0:01:21]} 25. Ba3 {[%clk 0:00:18]}  Ne3+ {[%clk 0:01:20]} 26. Kb2 {[%clk 0:00:18]}  Rg2 {[%clk 0:00:56]} 27. Rag1 {[%clk 0:00:18]}  Bxe4 {[%clk 0:00:22]} 28. Rxg2 {[%clk 0:00:15]}  Nxg2 {[%clk 0:00:23]} 29. fxe4 {[%clk 0:00:14]}  Rxd3 {[%clk 0:00:23]} 30. Nc4 {[%clk 0:00:14]}  Nf4 {[%clk 0:00:21]} 31. h5 {[%clk 0:00:13]}  Bh6 {[%clk 0:00:20]} 32. Kc2 {[%clk 0:00:13]}  Rg3 {[%clk 0:00:19]} 33. Bc1 {[%clk 0:00:12]}  Rg2+ {[%clk 0:00:18]} 34. Kb1 {[%clk 0:00:13]}  b5 {[%clk 0:00:14]} 35. Ne3 {[%clk 0:00:12]}  Rg3 {[%clk 0:00:11]} 36. Nf5 {[%clk 0:00:12]}  Rxc3 {[%clk 0:00:00]} 37. Nxh6 {[%clk 0:00:13]} 1-0


[Site "https://www.chess.com"]

[Event "Titled Tuesday Blitz August 15 Late 2023"]
[White "Fernandez Garcia, Gumersindo"]
[Black "Deng, Henry"]
[WhiteFideId "24516740"]
[BlackFideId "30965454"]
[WhiteElo "2394"]
[BlackElo "2534"]
[Result "1/2-1/2"]
[Round "6"]
[TimeControl "180+1"]
[Date "2023.08.15"]
[WhiteClock "0:00:11"]
[BlackClock "0:00:18"]
[Board "101"]

1. e4 {[%clk 0:03:00]}  e5 {[%clk 0:02:59]} 2. Nf3 {[%clk 0:03:00]}  Nc6 {[%clk 0:02:59]} 3. d4 {[%clk 0:03:00]}  exd4 {[%clk 0:02:55]} 4. Bc4 {[%clk 0:03:00]}  Nf6 {[%clk 0:02:51]} 5. O-O {[%clk 0:02:58]}  Nxe4 {[%clk 0:02:48]} 6. Re1 {[%clk 0:02:57]}  d5 {[%clk 0:02:48]} 7. Bxd5 {[%clk 0:02:57]}  Qxd5 {[%clk 0:02:49]} 8. Nc3 {[%clk 0:02:58]}  Qa5 {[%clk 0:02:47]} 9. Nxe4 {[%clk 0:02:57]}  Be6 {[%clk 0:02:46]} 10. Neg5 {[%clk 0:02:57]}  O-O-O {[%clk 0:02:41]} 11. Nxe6 {[%clk 0:02:58]}  fxe6 {[%clk 0:02:42]} 12. Rxe6 {[%clk 0:02:58]}  Bd6 {[%clk 0:02:32]} 13. Bg5 {[%clk 0:02:57]}  Rde8 {[%clk 0:01:59]} 14. Qe2 {[%clk 0:02:54]}  Kd7 {[%clk 0:01:52]} 15. Re1 {[%clk 0:02:09]}  Qxe1+ {[%clk 0:01:47]} 16. Qxe1 {[%clk 0:01:50]}  Rxe6 {[%clk 0:01:48]} 17. Qd1 {[%clk 0:01:48]}  Rhe8 {[%clk 0:01:42]} 18. g3 {[%clk 0:01:31]}  h6 {[%clk 0:01:41]} 19. Bd2 {[%clk 0:01:31]}  Re2 {[%clk 0:01:37]} 20. Kf1 {[%clk 0:01:30]}  R2e7 {[%clk 0:01:27]} 21. a3 {[%clk 0:01:29]}  Kc8 {[%clk 0:01:23]} 22. b4 {[%clk 0:01:28]}  a6 {[%clk 0:01:23]} 23. Bc1 {[%clk 0:01:23]}  Be5 {[%clk 0:00:53]} 24. Nxe5 {[%clk 0:01:16]}  Rxe5 {[%clk 0:00:50]} 25. Bb2 {[%clk 0:01:14]}  Kb8 {[%clk 0:00:47]} 26. Kg2 {[%clk 0:01:12]}  Re1 {[%clk 0:00:40]} 27. Qg4 {[%clk 0:01:09]}  g5 {[%clk 0:00:34]} 28. Qh5 {[%clk 0:01:02]}  R1e6 {[%clk 0:00:31]} 29. h4 {[%clk 0:00:59]}  gxh4 {[%clk 0:00:30]} 30. Qxh4 {[%clk 0:01:00]}  Rf8 {[%clk 0:00:29]} 31. Bxd4 {[%clk 0:00:57]}  Nxd4 {[%clk 0:00:19]} 32. Qxd4 {[%clk 0:00:56]}  Rd6 {[%clk 0:00:20]} 33. Qe3 {[%clk 0:00:53]}  Rc6 {[%clk 0:00:17]} 34. Qe4 {[%clk 0:00:48]}  Rd8 {[%clk 0:00:16]} 35. c4 {[%clk 0:00:47]}  Rd2 {[%clk 0:00:14]} 36. Qe3 {[%clk 0:00:48]}  Rd8 {[%clk 0:00:14]} 37. c5 {[%clk 0:00:48]}  Rf6 {[%clk 0:00:14]} 38. a4 {[%clk 0:00:46]}  Rdf8 {[%clk 0:00:13]} 39. b5 {[%clk 0:00:45]}  axb5 {[%clk 0:00:13]} 40. axb5 {[%clk 0:00:46]}  Rxf2+ {[%clk 0:00:13]} 41. Qxf2 {[%clk 0:00:46]}  Rxf2+ {[%clk 0:00:14]} 42. Kxf2 {[%clk 0:00:46]}  c6 {[%clk 0:00:14]} 43. bxc6 {[%clk 0:00:36]}  bxc6 {[%clk 0:00:15]} 44. Kf3 {[%clk 0:00:36]}  Ka7 {[%clk 0:00:15]} 45. Kf4 {[%clk 0:00:26]}  Ka6 {[%clk 0:00:15]} 46. Kf5 {[%clk 0:00:09]}  Kb5 {[%clk 0:00:14]} 47. Kg6 {[%clk 0:00:08]}  Kxc5 {[%clk 0:00:15]} 48. Kxh6 {[%clk 0:00:08]}  Kd4 {[%clk 0:00:15]} 49. g4 {[%clk 0:00:09]}  c5 {[%clk 0:00:15]} 50. g5 {[%clk 0:00:10]}  c4 {[%clk 0:00:16]} 51. g6 {[%clk 0:00:10]}  c3 {[%clk 0:00:17]} 52. g7 {[%clk 0:00:11]}  c2 {[%clk 0:00:18]} 53. g8=Q {[%clk 0:00:12]}  c1=Q+ {[%clk 0:00:18]} 54. Qg5 {[%clk 0:00:10]}  Qxg5+ {[%clk 0:00:18]} 55. Kxg5 {[%clk 0:00:11]} 1/2-1/2


[Site "https://www.chess.com"]

[Event "Titled Tuesday Blitz August 15 Late 2023"]
[White "Osmak, Yuliia"]
[Black "Topalov, Aleksandar"]
[WhiteFideId "14101602"]
[BlackFideId "925659"]
[WhiteElo "2514"]
[BlackElo "2371"]
[Result "1-0"]
[Round "6"]
[TimeControl "180+1"]
[Date "2023.08.15"]
[WhiteClock "0:02:12"]
[BlackClock "0:00:02"]
[Board "104"]

1. Nf3 {[%clk 0:03:00]}  e6 {[%clk 0:02:56]} 2. b3 {[%clk 0:03:01]}  f5 {[%clk 0:02:49]} 3. Bb2 {[%clk 0:03:01]}  Nf6 {[%clk 0:02:48]} 4. c4 {[%clk 0:02:58]}  Be7 {[%clk 0:02:46]} 5. g3 {[%clk 0:02:58]}  O-O {[%clk 0:02:42]} 6. Bg2 {[%clk 0:02:59]}  d6 {[%clk 0:02:41]} 7. O-O {[%clk 0:02:59]}  e5 {[%clk 0:02:39]} 8. d4 {[%clk 0:02:59]}  e4 {[%clk 0:02:34]} 9. Nfd2 {[%clk 0:02:59]}  c6 {[%clk 0:02:29]} 10. Nc3 {[%clk 0:02:59]}  d5 {[%clk 0:02:28]} 11. e3 {[%clk 0:02:58]}  Be6 {[%clk 0:02:18]} 12. c5 {[%clk 0:02:57]}  g5 {[%clk 0:02:09]} 13. b4 {[%clk 0:02:58]}  Qe8 {[%clk 0:02:04]} 14. f4 {[%clk 0:02:58]}  exf3 {[%clk 0:01:59]} 15. Nxf3 {[%clk 0:02:57]}  h6 {[%clk 0:01:59]} 16. b5 {[%clk 0:02:55]}  Bd7 {[%clk 0:01:43]} 17. a4 {[%clk 0:02:54]}  Ng4 {[%clk 0:01:40]} 18. Qe2 {[%clk 0:02:50]}  Nf6 {[%clk 0:01:24]} 19. Ne5 {[%clk 0:02:49]}  Be6 {[%clk 0:00:51]} 20. Rab1 {[%clk 0:02:45]}  a6 {[%clk 0:00:28]} 21. bxc6 {[%clk 0:02:39]}  Nxc6 {[%clk 0:00:27]} 22. Nd3 {[%clk 0:02:31]}  Na5 {[%clk 0:00:21]} 23. Ne5 {[%clk 0:02:26]}  Nc6 {[%clk 0:00:21]} 24. Nxc6 {[%clk 0:02:25]}  bxc6 {[%clk 0:00:20]} 25. Ba3 {[%clk 0:02:25]}  Bd8 {[%clk 0:00:17]} 26. Rb7 {[%clk 0:02:24]}  Bc8 {[%clk 0:00:15]} 27. Rb6 {[%clk 0:02:22]}  Ng4 {[%clk 0:00:12]} 28. Nxd5 {[%clk 0:02:12]}  cxd5 {[%clk 0:00:11]} 29. Bxd5+ {[%clk 0:02:13]}  Kh8 {[%clk 0:00:10]} 30. Bxa8 {[%clk 0:02:13]}  Bxb6 {[%clk 0:00:08]} 31. cxb6 {[%clk 0:02:14]}  Nxe3 {[%clk 0:00:07]} 32. Bxf8 {[%clk 0:02:12]}  Qxf8 {[%clk 0:00:05]} 33. Qxe3 {[%clk 0:02:12]}  f4 {[%clk 0:00:02]} 34. Qe5+ {[%clk 0:02:12]} 1-0


[Site "https://www.chess.com"]

[Event "Titled Tuesday Blitz August 15 Late 2023"]
[White "Polaczek, Richard"]
[Black "Berezin, Viktor"]
[WhiteFideId "200026"]
[BlackFideId "14107872"]
[WhiteElo "2363"]
[BlackElo "2504"]
[Result "1-0"]
[Round "6"]
[TimeControl "180+1"]
[Date "2023.08.15"]
[WhiteClock "0:00:51"]
[BlackClock "0:00:32"]
[Board "105"]

1. d4 {[%clk 0:02:59]}  b6 {[%clk 0:02:53]} 2. e4 {[%clk 0:02:56]}  Bb7 {[%clk 0:02:54]} 3. Bd3 {[%clk 0:02:54]}  g6 {[%clk 0:02:54]} 4. Nf3 {[%clk 0:02:52]}  Bg7 {[%clk 0:02:54]} 5. O-O {[%clk 0:02:50]}  d6 {[%clk 0:02:53]} 6. c3 {[%clk 0:02:48]}  Nd7 {[%clk 0:02:52]} 7. a4 {[%clk 0:02:47]}  a6 {[%clk 0:02:51]} 8. b4 {[%clk 0:02:44]}  Ngf6 {[%clk 0:02:49]} 9. Nbd2 {[%clk 0:02:41]}  O-O {[%clk 0:02:48]} 10. c4 {[%clk 0:02:36]}  c5 {[%clk 0:02:47]} 11. bxc5 {[%clk 0:02:35]}  bxc5 {[%clk 0:02:45]} 12. Rb1 {[%clk 0:02:34]}  Rb8 {[%clk 0:02:44]} 13. d5 {[%clk 0:02:25]}  Ng4 {[%clk 0:02:41]} 14. Bb2 {[%clk 0:02:14]}  Bxb2 {[%clk 0:02:38]} 15. Rxb2 {[%clk 0:02:14]}  Ba8 {[%clk 0:02:39]} 16. Qc2 {[%clk 0:02:11]}  Rxb2 {[%clk 0:02:34]} 17. Qxb2 {[%clk 0:02:10]}  Qa5 {[%clk 0:02:34]} 18. Qc2 {[%clk 0:02:07]}  Nge5 {[%clk 0:02:29]} 19. Nxe5 {[%clk 0:01:57]}  Nxe5 {[%clk 0:02:29]} 20. Rb1 {[%clk 0:01:48]}  Nxd3 {[%clk 0:02:27]} 21. Qxd3 {[%clk 0:01:48]}  Qxa4 {[%clk 0:02:27]} 22. f4 {[%clk 0:01:46]}  Qd7 {[%clk 0:02:23]} 23. e5 {[%clk 0:01:44]}  Qc7 {[%clk 0:02:19]} 24. Qe3 {[%clk 0:01:25]}  Rb8 {[%clk 0:02:11]} 25. Re1 {[%clk 0:01:25]}  a5 {[%clk 0:02:04]} 26. h4 {[%clk 0:01:24]}  a4 {[%clk 0:01:59]} 27. h5 {[%clk 0:01:24]}  Qd7 {[%clk 0:01:43]} 28. hxg6 {[%clk 0:01:15]}  hxg6 {[%clk 0:01:42]} 29. e6 {[%clk 0:01:11]}  fxe6 {[%clk 0:01:37]} 30. Qg3 {[%clk 0:01:08]}  Kg7 {[%clk 0:01:20]} 31. Rxe6 {[%clk 0:01:05]}  Qe8 {[%clk 0:01:19]} 32. f5 {[%clk 0:01:02]}  Qh8 {[%clk 0:01:07]} 33. Qxg6+ {[%clk 0:00:50]}  Kf8 {[%clk 0:00:32]} 34. f6 {[%clk 0:00:51]} 1-0


[Site "https://www.chess.com"]